[Event "*** Titled Tuesday Blitz"]
[Site "Chess.com"]
[Date "2020.12.01"]
[Round "7"]
[White "BanjoKazooieN64"]
[Black "dhaessel"]
[Result "1-0"]
[WhiteElo "2371"]
[BlackElo "1862"]
[TimeControl "180+1"]
[EndTime "11:14:35 PST"]
[Termination "BanjoKazooieN64 won by resignation"]

1. e4 {[%clk 0:03:00.9]} 1... e5 {[%clk 0:02:59.5]} 2. Nf3 {[%clk 0:02:59.7]}
2... Nc6 {[%clk 0:03:00]} 3. Bc4 {[%clk 0:02:59.8]} 3... Nf6 {[%clk 0:03:00.1]}
4. Ng5 {[%clk 0:02:59.8]} 4... d5 {[%clk 0:02:59.1]} 5. exd5 {[%clk 0:03:00.7]}
5... Na5 {[%clk 0:02:59.5]} 6. Bb5+ {[%clk 0:03:00.9]} 6... c6 {[%clk
0:03:00.4]} 7. dxc6 {[%clk 0:03:01.6]} 7... bxc6 {[%clk 0:03:01.1]} 8. Qf3
{[%clk 0:03:00.2]} 8... Be7 {[%clk 0:02:55.6]} 9. Bd3 {[%clk 0:02:59.1]} 9...
O-O {[%clk 0:02:46.9]} 10. O-O {[%clk 0:02:59]} 10... Qc7 {[%clk 0:01:55.1]} 11.
Nc3 {[%clk 0:02:57.7]} 11... h6 {[%clk 0:01:47.5]} 12. Nge4 {[%clk 0:02:57.6]}
12... Nd5 {[%clk 0:01:47.8]} 13. Ng3 {[%clk 0:02:56.4]} 13... Nb4 {[%clk
0:01:45.9]} 14. Bf5 {[%clk 0:02:54]} 14... Bb7 {[%clk 0:01:42.3]} 15. a3 {[%clk
0:02:51.5]} 15... c5 {[%clk 0:01:35.6]} 16. Qg4 {[%clk 0:02:51.5]} 16... Nbc6
{[%clk 0:01:33.4]} 17. Nh5 {[%clk 0:02:50]} 17... g5 {[%clk 0:01:27.1]} 18. d3
{[%clk 0:02:47.8]} 18... Nd4 {[%clk 0:01:25.9]} 19. h4 {[%clk 0:02:42.8]} 19...
f6 {[%clk 0:00:50.1]} 20. Ne4 {[%clk 0:02:30]} 20... Nxc2 {[%clk 0:00:44.9]} 21.
hxg5 {[%clk 0:02:29.4]} 21... hxg5 {[%clk 0:00:43.5]} 22. Nxg5 {[%clk
0:02:10.5]} 22... fxg5 {[%clk 0:00:42.8]} 23. Bxg5 {[%clk 0:02:10.6]} 23... Kf7
{[%clk 0:00:26.7]} 24. Bg6+ {[%clk 0:01:20.2]} 24... Kg8 {[%clk 0:00:24.2]} 25.
Bh6 {[%clk 0:01:09.8]} 25... Kh8 {[%clk 0:00:20.4]} 26. Bg7+ {[%clk 0:01:07]}
26... Kg8 {[%clk 0:00:18.5]} 27. Qe6+ {[%clk 0:01:07.3]} 1-0

[Event "*** Titled Tuesday Blitz"]
[Site "Chess.com"]
[Date "2020.12.01"]
[Round "7"]
[White "esrosenberg"]
[Black "Kislov_Oleg"]
[Result "0-1"]
[WhiteElo "2215"]
[BlackElo "2364"]
[TimeControl "180+1"]
[EndTime "11:14:38 PST"]
[Termination "Kislov_Oleg won by checkmate"]

1. Nf3 {[%clk 0:03:00.9]} 1... d5 {[%clk 0:02:58.5]} 2. c4 {[%clk 0:03:00.8]}
2... e6 {[%clk 0:02:57.9]} 3. d4 {[%clk 0:03:00.9]} 3... Nf6 {[%clk 0:02:57.7]}
4. Nc3 {[%clk 0:03:01.5]} 4... Bb4 {[%clk 0:02:57.5]} 5. Bg5 {[%clk 0:03:01.5]}
5... h6 {[%clk 0:02:57.3]} 6. Bd2 {[%clk 0:03:01.8]} 6... O-O {[%clk 0:02:54.8]}
7. e3 {[%clk 0:02:58.7]} 7... Nc6 {[%clk 0:02:53.2]} 8. Rc1 {[%clk 0:02:47.8]}
8... dxc4 {[%clk 0:02:45.2]} 9. Bxc4 {[%clk 0:02:47.4]} 9... Bd6 {[%clk
0:02:44.5]} 10. a3 {[%clk 0:02:45.2]} 10... e5 {[%clk 0:02:43.8]} 11. d5 {[%clk
0:02:24]} 11... Ne7 {[%clk 0:02:41.6]} 12. h3 {[%clk 0:02:09.3]} 12... e4 {[%clk
0:02:37.9]} 13. Nh2 {[%clk 0:01:34.6]} 13... Ng6 {[%clk 0:02:25.7]} 14. Ng4
{[%clk 0:01:30.5]} 14... Nh4 {[%clk 0:02:08.4]} 15. Nxf6+ {[%clk 0:01:08.9]}
15... Qxf6 {[%clk 0:02:07.3]} 16. Nxe4 {[%clk 0:00:43.8]} 16... Qg6 {[%clk
0:01:48.3]} 17. Nxd6 {[%clk 0:00:28.4]} 17... Qxg2 {[%clk 0:01:40.8]} 18. Ke2
{[%clk 0:00:26]} 18... cxd6 {[%clk 0:01:31.5]} 19. Kd3 {[%clk 0:00:24]} 19...
Bf5+ {[%clk 0:01:27.6]} 20. Kc3 {[%clk 0:00:24.2]} 20... b5 {[%clk 0:01:16.1]}
21. Be2 {[%clk 0:00:20.1]} 21... Qxd5 {[%clk 0:01:12.8]} 22. b4 {[%clk
0:00:15.2]} 22... Be6 {[%clk 0:01:01.1]} 23. Be1 {[%clk 0:00:12.2]} 23... Rfc8+
{[%clk 0:00:59]} 24. Kb2 {[%clk 0:00:12.2]} 24... Qa2# {[%clk 0:00:58.5]} 0-1

[Event "*** Titled Tuesday Blitz"]
[Site "Chess.com"]
[Date "2020.12.01"]
[Round "7"]
[White "rasmussvane"]
[Black "Micki-taryan"]
[Result "1/2-1/2"]
[WhiteElo "2896"]
[BlackElo "3013"]
[TimeControl "180+1"]
[EndTime "11:14:45 PST"]
[Termination "Game drawn by repetition"]

1. Nf3 {[%clk 0:03:00.9]} 1... Nf6 {[%clk 0:03:00]} 2. g3 {[%clk 0:03:01.1]}
2... d5 {[%clk 0:02:58.6]} 3. Bg2 {[%clk 0:03:01.3]} 3... c6 {[%clk 0:02:58.5]}
4. O-O {[%clk 0:03:01.4]} 4... Bf5 {[%clk 0:02:57.8]} 5. c4 {[%clk 0:03:01.3]}
5... e6 {[%clk 0:02:57.6]} 6. Qb3 {[%clk 0:03:01.4]} 6... Qb6 {[%clk 0:02:57.1]}
7. d3 {[%clk 0:03:01.7]} 7... Nbd7 {[%clk 0:02:56.2]} 8. cxd5 {[%clk 0:03:02]}
8... exd5 {[%clk 0:02:49.5]} 9. Qc2 {[%clk 0:03:01.3]} 9... Be7 {[%clk
0:02:47.8]} 10. Nc3 {[%clk 0:03:01.4]} 10... O-O {[%clk 0:02:46.7]} 11. e4
{[%clk 0:03:01.8]} 11... dxe4 {[%clk 0:02:46.8]} 12. dxe4 {[%clk 0:03:02.7]}
12... Bg6 {[%clk 0:02:45.2]} 13. Be3 {[%clk 0:03:03.2]} 13... Qa5 {[%clk
0:02:42.6]} 14. Nh4 {[%clk 0:03:01.5]} 14... Ng4 {[%clk 0:02:35.7]} 15. Nxg6
{[%clk 0:03:00.1]} 15... hxg6 {[%clk 0:02:36.6]} 16. Bd2 {[%clk 0:02:39.9]}
16... Qh5 {[%clk 0:02:29.7]} 17. h3 {[%clk 0:02:40.3]} 17... Nge5 {[%clk
0:02:29.2]} 18. Qd1 {[%clk 0:02:28.7]} 18... Rfd8 {[%clk 0:02:22.6]} 19. Qxh5
{[%clk 0:02:23.8]} 19... gxh5 {[%clk 0:02:23.5]} 20. Rad1 {[%clk 0:02:15.2]}
20... h4 {[%clk 0:02:18.8]} 21. gxh4 {[%clk 0:02:07.8]} 21... Bxh4 {[%clk
0:02:15.6]} 22. b3 {[%clk 0:01:59.9]} 22... Be7 {[%clk 0:02:06.2]} 23. f4 {[%clk
0:01:54.3]} 23... Bc5+ {[%clk 0:02:04.2]} 24. Kh2 {[%clk 0:01:54.4]} 24... Nd3
{[%clk 0:02:04]} 25. e5 {[%clk 0:01:40.3]} 25... Bd4 {[%clk 0:01:50]} 26. Ne2
{[%clk 0:01:29.4]} 26... Bb6 {[%clk 0:01:48.4]} 27. Bc3 {[%clk 0:01:25.2]} 27...
Nf8 {[%clk 0:01:36.1]} 28. Kg3 {[%clk 0:01:18.2]} 28... Rd7 {[%clk 0:01:05.1]}
29. Bf3 {[%clk 0:00:44.4]} 29... Rad8 {[%clk 0:01:00.9]} 30. Bg4 {[%clk
0:00:42.1]} 30... Rd5 {[%clk 0:00:57]} 31. Bf3 {[%clk 0:00:38]} 31... R5d7
{[%clk 0:00:55.9]} 32. Bg4 {[%clk 0:00:38]} 32... Rd5 {[%clk 0:00:50.3]} 33. Bf3
{[%clk 0:00:38]} 33... R5d7 {[%clk 0:00:47.8]} 1/2-1/2

[Event "*** Titled Tuesday Blitz"]
[Site "Chess.com"]
[Date "2020.12.01"]
[Round "7"]
[White "kirillshevchenko"]
[Black "mirciulica14"]
[Result "1-0"]
[WhiteElo "2857"]
[BlackElo "2597"]
[TimeControl "180+1"]
[EndTime "11:14:47 PST"]
[Termination "kirillshevchenko won by checkmate"]

1. e4 {[%clk 0:03:00.9]} 1... e5 {[%clk 0:02:59.9]} 2. d3 {[%clk 0:03:00.5]}
2... Nf6 {[%clk 0:02:57.4]} 3. f4 {[%clk 0:03:00.1]} 3... exf4 {[%clk
0:02:42.4]} 4. Bxf4 {[%clk 0:03:00]} 4... d5 {[%clk 0:02:38.3]} 5. e5 {[%clk
0:02:59.4]} 5... Nfd7 {[%clk 0:02:36]} 6. Nf3 {[%clk 0:02:59.3]} 6... c5 {[%clk
0:02:34.6]} 7. Nc3 {[%clk 0:02:57.5]} 7... Nc6 {[%clk 0:02:28.4]} 8. Be2 {[%clk
0:02:57.4]} 8... h6 {[%clk 0:02:13.2]} 9. O-O {[%clk 0:02:55.5]} 9... g5 {[%clk
0:02:13.1]} 10. e6 {[%clk 0:02:13.3]} 10... gxf4 {[%clk 0:02:04.7]} 11. exd7+
{[%clk 0:02:13.5]} 11... Qxd7 {[%clk 0:02:03.6]} 12. Qd2 {[%clk 0:02:12.3]}
12... Bg7 {[%clk 0:01:39.1]} 13. Qxf4 {[%clk 0:02:06.1]} 13... O-O {[%clk
0:01:39.3]} 14. Rae1 {[%clk 0:01:59.1]} 14... b6 {[%clk 0:01:17.1]} 15. Kh1
{[%clk 0:01:46.4]} 15... Bb7 {[%clk 0:01:14.7]} 16. Nh4 {[%clk 0:01:46.7]} 16...
Nd4 {[%clk 0:00:59.5]} 17. Bg4 {[%clk 0:01:45.5]} 17... Qc6 {[%clk 0:00:50.5]}
18. Re7 {[%clk 0:01:43.1]} 18... Rae8 {[%clk 0:00:43.8]} 19. Bd7 {[%clk
0:01:42.4]} 19... Rxe7 {[%clk 0:00:32.8]} 20. Bxc6 {[%clk 0:01:42.6]} 20... Bxc6
{[%clk 0:00:33.2]} 21. h3 {[%clk 0:01:30.3]} 21... Rfe8 {[%clk 0:00:22.5]} 22.
Nd1 {[%clk 0:01:29.5]} 22... Ne2 {[%clk 0:00:18.3]} 23. Qg4 {[%clk 0:01:28.2]}
23... Bd7 {[%clk 0:00:18]} 24. Qf3 {[%clk 0:01:23.9]} 24... Nd4 {[%clk
0:00:17.6]} 25. Qh5 {[%clk 0:01:21.5]} 25... Nxc2 {[%clk 0:00:09.4]} 26. Nc3
{[%clk 0:01:17.7]} 26... Ne3 {[%clk 0:00:09]} 27. Rf3 {[%clk 0:01:18.2]} 27...
d4 {[%clk 0:00:09.3]} 28. Ne4 {[%clk 0:01:18.5]} 28... Kh7 {[%clk 0:00:03.6]}
29. Nf6+ {[%clk 0:01:18.5]} 29... Kh8 {[%clk 0:00:01.7]} 30. Qxf7 {[%clk
0:01:15.9]} 30... Rxf7 {[%clk 0:00:01.8]} 31. Ng6# {[%clk 0:01:16]} 1-0

[Event "*** Titled Tuesday Blitz"]
[Site "Chess.com"]
[Date "2020.12.01"]
[Round "7"]
[White "GMStefanova"]
[Black "Lysiak_Poltorak"]
[Result "1-0"]
[WhiteElo "2544"]
[BlackElo "2370"]
[TimeControl "180+1"]
[EndTime "11:14:50 PST"]
[Termination "GMStefanova won by resignation"]

1. d4 {[%clk 0:03:00.9]} 1... Nf6 {[%clk 0:02:59.8]} 2. Nf3 {[%clk 0:03:00.9]}
2... g6 {[%clk 0:02:58.5]} 3. Nc3 {[%clk 0:02:58.6]} 3... d5 {[%clk 0:02:57.8]}
4. Bf4 {[%clk 0:02:57.8]} 4... Bg7 {[%clk 0:02:51.8]} 5. e3 {[%clk 0:02:57]}
5... O-O {[%clk 0:02:50.1]} 6. h4 {[%clk 0:02:54.6]} 6... h5 {[%clk 0:02:49.4]}
7. Nb5 {[%clk 0:02:51]} 7... Na6 {[%clk 0:02:48.4]} 8. Be2 {[%clk 0:02:48.9]}
8... c6 {[%clk 0:02:44.6]} 9. Nc3 {[%clk 0:02:44.8]} 9... Nc7 {[%clk 0:02:44.3]}
10. Be5 {[%clk 0:02:43.6]} 10... Ng4 {[%clk 0:02:40]} 11. Bxg7 {[%clk
0:02:42.9]} 11... Kxg7 {[%clk 0:02:40.9]} 12. Ne5 {[%clk 0:02:40.6]} 12... f5
{[%clk 0:02:21.5]} 13. Qd2 {[%clk 0:02:36.9]} 13... e6 {[%clk 0:02:16.8]} 14. f3
{[%clk 0:02:30.7]} 14... Nxe5 {[%clk 0:02:16.2]} 15. dxe5 {[%clk 0:02:30.2]}
15... Nb5 {[%clk 0:01:35.7]} 16. Bxb5 {[%clk 0:02:15.7]} 16... cxb5 {[%clk
0:01:36.6]} 17. Nxb5 {[%clk 0:02:01.2]} 17... Qb6 {[%clk 0:01:33.8]} 18. a4
{[%clk 0:01:51.3]} 18... Bd7 {[%clk 0:01:28]} 19. Nd4 {[%clk 0:01:47.8]} 19...
Qxb2 {[%clk 0:01:25.2]} 20. O-O {[%clk 0:01:47.6]} 20... Qb6 {[%clk 0:01:18.6]}
21. Rfb1 {[%clk 0:01:45]} 21... Qc7 {[%clk 0:01:17.2]} 22. f4 {[%clk 0:01:44.1]}
22... Rfe8 {[%clk 0:00:50.7]} 23. a5 {[%clk 0:01:42.6]} 23... Bc6 {[%clk
0:00:49]} 24. Qb4 {[%clk 0:01:38.9]} 24... Rac8 {[%clk 0:00:43.9]} 25. Ra3
{[%clk 0:01:36.6]} 25... Re7 {[%clk 0:00:41.6]} 26. Rc3 {[%clk 0:01:33.2]} 26...
Qd7 {[%clk 0:00:36.9]} 27. a6 {[%clk 0:01:25.7]} 27... b6 {[%clk 0:00:36.4]} 28.
Nxc6 {[%clk 0:01:21.2]} 28... Ree8 {[%clk 0:00:19]} 29. Nd4 {[%clk 0:01:15]}
29... Rxc3 {[%clk 0:00:19.2]} 30. Qxc3 {[%clk 0:01:14.7]} 30... Rc8 {[%clk
0:00:20.1]} 31. Qb3 {[%clk 0:01:14]} 31... Kf7 {[%clk 0:00:19.5]} 32. Qb5 {[%clk
0:01:11.8]} 32... Qe7 {[%clk 0:00:18.4]} 33. Rb3 {[%clk 0:01:09.5]} 33... Qxh4
{[%clk 0:00:18.2]} 34. Qd7+ {[%clk 0:01:07.8]} 1-0

[Event "*** Titled Tuesday Blitz"]
[Site "Chess.com"]
[Date "2020.12.01"]
[Round "7"]
[White "MartinMatthiesen"]
[Black "maxip32"]
[Result "1-0"]
[WhiteElo "2406"]
[BlackElo "2493"]
[TimeControl "180+1"]
[EndTime "11:14:51 PST"]
[Termination "MartinMatthiesen won by resignation"]

1. d4 {[%clk 0:02:59.8]} 1... d5 {[%clk 0:02:51.7]} 2. c4 {[%clk 0:02:59.2]}
2... e6 {[%clk 0:02:51.8]} 3. Nc3 {[%clk 0:02:58.8]} 3... Be7 {[%clk 0:02:51.9]}
4. Nf3 {[%clk 0:02:58.4]} 4... Nf6 {[%clk 0:02:51.5]} 5. Bf4 {[%clk 0:02:58.5]}
5... O-O {[%clk 0:02:49]} 6. e3 {[%clk 0:02:58.6]} 6... c5 {[%clk 0:02:41.8]} 7.
dxc5 {[%clk 0:02:58.1]} 7... Bxc5 {[%clk 0:02:42.7]} 8. Qc2 {[%clk 0:02:57.1]}
8... Qa5 {[%clk 0:02:37]} 9. a3 {[%clk 0:02:56.6]} 9... Nc6 {[%clk 0:02:36.1]}
10. Rd1 {[%clk 0:02:54]} 10... dxc4 {[%clk 0:02:10.3]} 11. Bxc4 {[%clk
0:02:50.8]} 11... Be7 {[%clk 0:01:50.2]} 12. O-O {[%clk 0:02:44.3]} 12... a6
{[%clk 0:01:50.2]} 13. Ba2 {[%clk 0:02:41.2]} 13... b5 {[%clk 0:01:47.3]} 14.
Ng5 {[%clk 0:02:33.3]} 14... Bb7 {[%clk 0:01:13.8]} 15. Rd7 {[%clk 0:02:23.3]}
15... h6 {[%clk 0:00:32.1]} 16. Rxb7 {[%clk 0:01:58.7]} 16... hxg5 {[%clk
0:00:31.6]} 17. Bc7 {[%clk 0:01:58.3]} 17... Rab8 {[%clk 0:00:17.2]} 18. Bxa5
{[%clk 0:01:54.2]} 18... Rxb7 {[%clk 0:00:18.1]} 19. Bb4 {[%clk 0:01:53.5]}
19... Bxb4 {[%clk 0:00:18]} 20. axb4 {[%clk 0:01:53.4]} 20... Nxb4 {[%clk
0:00:18.9]} 21. Qe2 {[%clk 0:01:51]} 21... Nc6 {[%clk 0:00:18.8]} 22. Rc1 {[%clk
0:01:49.8]} 22... Ne5 {[%clk 0:00:18.5]} 23. Bb1 {[%clk 0:01:48.6]} 23... b4
{[%clk 0:00:18.5]} 24. Ne4 {[%clk 0:01:48.1]} 24... Nxe4 {[%clk 0:00:17.5]} 25.
Bxe4 {[%clk 0:01:47.6]} 25... Rd7 {[%clk 0:00:18.4]} 26. Qxa6 {[%clk 0:01:46.5]}
26... Rfd8 {[%clk 0:00:18.6]} 27. g3 {[%clk 0:01:46.3]} 27... g4 {[%clk
0:00:18.3]} 28. Qa5 {[%clk 0:01:46.2]} 28... Nf3+ {[%clk 0:00:17.7]} 29. Bxf3
{[%clk 0:01:40.2]} 29... gxf3 {[%clk 0:00:18.6]} 30. h4 {[%clk 0:01:40.2]} 30...
b3 {[%clk 0:00:17.4]} 31. Qb5 {[%clk 0:01:38.2]} 31... Rd3 {[%clk 0:00:12.4]}
32. Qc6 {[%clk 0:01:36.2]} 32... g6 {[%clk 0:00:11.4]} 33. Qxf3 {[%clk
0:01:35.5]} 33... Rd2 {[%clk 0:00:12]} 34. Qb7 {[%clk 0:01:34.6]} 34... Rxb2
{[%clk 0:00:11.4]} 35. Rc8 {[%clk 0:01:34.2]} 35... Rxc8 {[%clk 0:00:10.8]} 36.
Qxc8+ {[%clk 0:01:34.4]} 36... Kh7 {[%clk 0:00:11.7]} 37. Qc7 {[%clk 0:01:27.7]}
37... Kg8 {[%clk 0:00:09.9]} 38. Kg2 {[%clk 0:01:25.8]} 38... Rc2 {[%clk
0:00:08.7]} 39. Qb8+ {[%clk 0:01:25.1]} 1-0

[Event "*** Titled Tuesday Blitz"]
[Site "Chess.com"]
[Date "2020.12.01"]
[Round "7"]
[White "GianmarcoVaR"]
[Black "kuban1991"]
[Result "0-1"]
[WhiteElo "2656"]
[BlackElo "2827"]
[TimeControl "180+1"]
[EndTime "11:14:52 PST"]
[Termination "kuban1991 won by resignation"]

1. d4 {[%clk 0:03:00.6]} 1... g6 {[%clk 0:02:59]} 2. g3 {[%clk 0:02:56.9]} 2...
Bg7 {[%clk 0:02:59]} 3. Nf3 {[%clk 0:02:57.6]} 3... c5 {[%clk 0:02:59]} 4. dxc5
{[%clk 0:02:50.1]} 4... Na6 {[%clk 0:02:57.9]} 5. Bg2 {[%clk 0:02:43.8]} 5...
Nxc5 {[%clk 0:02:57.1]} 6. O-O {[%clk 0:02:44.4]} 6... Nf6 {[%clk 0:02:56.3]} 7.
Be3 {[%clk 0:02:40.8]} 7... Nce4 {[%clk 0:02:50.6]} 8. Bd4 {[%clk 0:02:39.6]}
8... O-O {[%clk 0:02:49.6]} 9. Nbd2 {[%clk 0:02:38.7]} 9... Nxd2 {[%clk
0:02:45.3]} 10. Qxd2 {[%clk 0:02:38.9]} 10... d6 {[%clk 0:02:45.4]} 11. Rfd1
{[%clk 0:02:33.4]} 11... Bd7 {[%clk 0:02:44.3]} 12. b3 {[%clk 0:02:25.7]} 12...
Bc6 {[%clk 0:02:41.1]} 13. c4 {[%clk 0:02:22.2]} 13... a5 {[%clk 0:02:30.5]} 14.
Qb2 {[%clk 0:02:05.8]} 14... Qc8 {[%clk 0:02:26.5]} 15. a4 {[%clk 0:01:54.4]}
15... Ne8 {[%clk 0:02:12.9]} 16. Nh4 {[%clk 0:01:46.8]} 16... Qe6 {[%clk
0:02:08.2]} 17. Bd5 {[%clk 0:01:38.9]} 17... Qh3 {[%clk 0:02:05.1]} 18. Ng2
{[%clk 0:01:29.3]} 18... Bxd4 {[%clk 0:01:56.6]} 19. Qxd4 {[%clk 0:01:28.1]}
19... Nf6 {[%clk 0:01:56.1]} 20. Nf4 {[%clk 0:01:22]} 20... Qf5 {[%clk
0:01:47.3]} 21. Qe3 {[%clk 0:01:13.1]} 21... e5 {[%clk 0:01:34.7]} 22. Ng2
{[%clk 0:00:58]} 22... Bxd5 {[%clk 0:01:33]} 23. cxd5 {[%clk 0:00:58.2]} 23...
Rac8 {[%clk 0:01:29]} 24. Nh4 {[%clk 0:00:51.8]} 24... Qe4 {[%clk 0:01:24.3]}
25. Qxe4 {[%clk 0:00:40.9]} 25... Nxe4 {[%clk 0:01:25.2]} 26. Rdc1 {[%clk
0:00:40.6]} 26... Nd2 {[%clk 0:01:17.1]} 27. Nf3 {[%clk 0:00:32.7]} 27... Nxb3
{[%clk 0:01:15]} 28. Rxc8 {[%clk 0:00:32.7]} 28... Rxc8 {[%clk 0:01:15.9]} 29.
Rb1 {[%clk 0:00:33.1]} 29... Rc1+ {[%clk 0:01:10.7]} 30. Rxc1 {[%clk 0:00:32.7]}
30... Nxc1 {[%clk 0:01:11.6]} 31. Kf1 {[%clk 0:00:32.2]} 31... Nb3 {[%clk
0:01:11.5]} 32. Nd2 {[%clk 0:00:31.8]} 32... Nxd2+ {[%clk 0:01:11.5]} 0-1

[Event "*** Titled Tuesday Blitz"]
[Site "Chess.com"]
[Date "2020.12.01"]
[Round "7"]
[White "Joel1285"]
[Black "Chamal_Gedgafov"]
[Result "0-1"]
[WhiteElo "1835"]
[BlackElo "2165"]
[TimeControl "180+1"]
[EndTime "11:14:57 PST"]
[Termination "Chamal_Gedgafov won on time"]

1. d4 {[%clk 0:03:00.9]} 1... Nf6 {[%clk 0:02:58.7]} 2. c4 {[%clk 0:02:59.9]}
2... e6 {[%clk 0:02:59.1]} 3. Nf3 {[%clk 0:03:00.4]} 3... b6 {[%clk 0:02:58.4]}
4. a3 {[%clk 0:03:00.4]} 4... Ba6 {[%clk 0:02:57.5]} 5. Nbd2 {[%clk 0:02:42.9]}
5... d5 {[%clk 0:02:56.1]} 6. e3 {[%clk 0:02:41.1]} 6... Be7 {[%clk 0:02:55.3]}
7. cxd5 {[%clk 0:02:39.8]} 7... Bxf1 {[%clk 0:02:54]} 8. Nxf1 {[%clk 0:02:40.7]}
8... exd5 {[%clk 0:02:51.7]} 9. Ng3 {[%clk 0:02:38.6]} 9... O-O {[%clk
0:02:51.1]} 10. O-O {[%clk 0:02:39.5]} 10... c5 {[%clk 0:02:51.1]} 11. Nf5
{[%clk 0:02:30.5]} 11... c4 {[%clk 0:02:46]} 12. Nxe7+ {[%clk 0:02:29.9]} 12...
Qxe7 {[%clk 0:02:45.3]} 13. b3 {[%clk 0:02:29.9]} 13... b5 {[%clk 0:02:44]} 14.
a4 {[%clk 0:02:29.9]} 14... cxb3 {[%clk 0:02:26.9]} 15. axb5 {[%clk 0:02:23.9]}
15... Qb7 {[%clk 0:02:21.1]} 16. Qxb3 {[%clk 0:02:20.4]} 16... Nbd7 {[%clk
0:02:20.6]} 17. Ba3 {[%clk 0:01:56.8]} 17... Rfb8 {[%clk 0:02:13.9]} 18. Rab1
{[%clk 0:01:38.6]} 18... a6 {[%clk 0:02:11]} 19. Bd6 {[%clk 0:01:29.8]} 19...
Rc8 {[%clk 0:02:10.5]} 20. bxa6 {[%clk 0:01:29.5]} 20... Qxb3 {[%clk 0:02:04.6]}
21. Rxb3 {[%clk 0:01:30.4]} 21... Rxa6 {[%clk 0:02:04.9]} 22. Be5 {[%clk
0:01:07.7]} 22... h6 {[%clk 0:02:01.7]} 23. h3 {[%clk 0:01:01.8]} 23... Rc2
{[%clk 0:01:58.5]} 24. g4 {[%clk 0:00:46.5]} 24... Ne4 {[%clk 0:01:39.4]} 25.
Bg3 {[%clk 0:00:29.5]} 25... Raa2 {[%clk 0:01:34.9]} 26. Kg2 {[%clk 0:00:26.6]}
26... Ndf6 {[%clk 0:01:10.9]} 27. Rb8+ {[%clk 0:00:03.3]} 27... Kh7 {[%clk
0:01:09.9]} 28. Nh4 {[%clk 0:00:01.9]} 28... g6 {[%clk 0:01:00.4]} 0-1

[Event "*** Titled Tuesday Blitz"]
[Site "Chess.com"]
[Date "2020.12.01"]
[Round "7"]
[White "tomsishere"]
[Black "MarceloPlaya"]
[Result "0-1"]
[WhiteElo "2345"]
[BlackElo "2280"]
[TimeControl "180+1"]
[EndTime "11:15:00 PST"]
[Termination "MarceloPlaya won on time"]

1. Nf3 {[%clk 0:03:00.9]} 1... e6 {[%clk 0:03:00]} 2. b3 {[%clk 0:02:59.5]} 2...
Nf6 {[%clk 0:02:58.8]} 3. Bb2 {[%clk 0:03:00.4]} 3... d5 {[%clk 0:02:59]} 4. e3
{[%clk 0:02:57.8]} 4... c5 {[%clk 0:02:58.8]} 5. d4 {[%clk 0:02:56.7]} 5... Nc6
{[%clk 0:02:58.7]} 6. a3 {[%clk 0:02:56.2]} 6... Be7 {[%clk 0:02:56.2]} 7. Bd3
{[%clk 0:02:56]} 7... O-O {[%clk 0:02:55.6]} 8. O-O {[%clk 0:02:56.6]} 8... b6
{[%clk 0:02:55.3]} 9. Nbd2 {[%clk 0:02:54.1]} 9... a5 {[%clk 0:02:54.8]} 10. Qe2
{[%clk 0:02:50.5]} 10... a4 {[%clk 0:02:53.1]} 11. Bb5 {[%clk 0:02:47.8]} 11...
Qc7 {[%clk 0:02:39.9]} 12. bxa4 {[%clk 0:02:42.7]} 12... cxd4 {[%clk 0:02:36.5]}
13. exd4 {[%clk 0:02:40.2]} 13... Bd7 {[%clk 0:02:25.7]} 14. Rac1 {[%clk
0:02:31.7]} 14... Na5 {[%clk 0:02:19]} 15. c4 {[%clk 0:02:29.2]} 15... dxc4
{[%clk 0:02:10.3]} 16. Nxc4 {[%clk 0:02:26.8]} 16... Nxc4 {[%clk 0:02:04.5]} 17.
Rxc4 {[%clk 0:02:18.5]} 17... Qb7 {[%clk 0:02:01.6]} 18. d5 {[%clk 0:02:06]}
18... Nxd5 {[%clk 0:01:53]} 19. Ne5 {[%clk 0:02:02.6]} 19... Bxb5 {[%clk
0:01:50.7]} 20. axb5 {[%clk 0:02:02.5]} 20... Bxa3 {[%clk 0:01:46.1]} 21. Ba1
{[%clk 0:01:50.7]} 21... Bc5 {[%clk 0:01:25.4]} 22. Nd3 {[%clk 0:01:28]} 22...
Be7 {[%clk 0:01:17.5]} 23. Qh5 {[%clk 0:01:24.3]} 23... Bf6 {[%clk 0:01:10.9]}
24. Ne5 {[%clk 0:00:52.3]} 24... Bxe5 {[%clk 0:01:04.8]} 25. Bxe5 {[%clk
0:00:50.8]} 25... f6 {[%clk 0:01:02.7]} 26. Bd6 {[%clk 0:00:44]} 26... Rfc8
{[%clk 0:01:00.6]} 0-1

[Event "*** Titled Tuesday Blitz"]
[Site "Chess.com"]
[Date "2020.12.01"]
[Round "7"]
[White "Zorbos"]
[Black "PelinGorki"]
[Result "0-1"]
[WhiteElo "2510"]
[BlackElo "2425"]
[TimeControl "180+1"]
[EndTime "11:15:02 PST"]
[Termination "PelinGorki won by resignation"]

1. e4 {[%clk 0:03:00.9]} 1... d6 {[%clk 0:02:59.4]} 2. d4 {[%clk 0:02:59.9]}
2... Nf6 {[%clk 0:02:59.3]} 3. Nc3 {[%clk 0:03:00.2]} 3... c6 {[%clk 0:02:59.3]}
4. f3 {[%clk 0:02:58.3]} 4... Qb6 {[%clk 0:02:58.8]} 5. Bc4 {[%clk 0:02:45.9]}
5... e5 {[%clk 0:02:56.1]} 6. Nge2 {[%clk 0:02:46.4]} 6... Be7 {[%clk
0:02:55.7]} 7. Be3 {[%clk 0:02:44.5]} 7... O-O {[%clk 0:02:54.7]} 8. Qd2 {[%clk
0:02:43.8]} 8... Qxb2 {[%clk 0:02:53.1]} 9. Rb1 {[%clk 0:02:43.7]} 9... Qa3
{[%clk 0:02:53.4]} 10. g4 {[%clk 0:02:38.9]} 10... Qa5 {[%clk 0:02:49.8]} 11. g5
{[%clk 0:02:35.4]} 11... Nh5 {[%clk 0:02:48.7]} 12. Ng3 {[%clk 0:02:35.3]} 12...
Nf4 {[%clk 0:02:48.8]} 13. h4 {[%clk 0:02:22.2]} 13... Ng2+ {[%clk 0:02:47.6]}
14. Kd1 {[%clk 0:02:09.7]} 14... Nxe3+ {[%clk 0:02:48.5]} 15. Qxe3 {[%clk
0:02:10.6]} 15... b5 {[%clk 0:02:34.8]} 16. Bb3 {[%clk 0:02:09.8]} 16... Be6
{[%clk 0:02:25.7]} 17. d5 {[%clk 0:01:52.9]} 17... Bd7 {[%clk 0:02:15.5]} 18.
dxc6 {[%clk 0:01:48.3]} 18... Nxc6 {[%clk 0:02:16.4]} 19. Nd5 {[%clk 0:01:48.6]}
19... Rfd8 {[%clk 0:02:05.1]} 20. h5 {[%clk 0:01:47.9]} 20... Kf8 {[%clk
0:01:24.1]} 21. g6 {[%clk 0:01:43.7]} 21... h6 {[%clk 0:01:23.8]} 22. Nf5 {[%clk
0:01:17]} 22... Bg5 {[%clk 0:01:17.1]} 23. f4 {[%clk 0:01:05.1]} 23... exf4
{[%clk 0:01:12.9]} 24. Nxf4 {[%clk 0:01:05.2]} 24... Bxf5 {[%clk 0:01:10.2]} 25.
exf5 {[%clk 0:01:06.1]} 25... Re8 {[%clk 0:01:07.6]} 26. Qf2 {[%clk 0:00:44.9]}
26... Re4 {[%clk 0:01:00.5]} 27. Nd3 {[%clk 0:00:31.4]} 27... Rae8 {[%clk
0:00:44.7]} 28. Bd5 {[%clk 0:00:31.2]} 28... Re2 {[%clk 0:00:44.8]} 29. Qxe2
{[%clk 0:00:25.5]} 29... Rxe2 {[%clk 0:00:45.7]} 30. Kxe2 {[%clk 0:00:26.1]}
30... Qd2+ {[%clk 0:00:39.5]} 0-1